lending/lending_fUSD_20251018
["ID","MTS","AMOUNT","RATE_DAILY","PERIOD"]
[391792507,1760826643044,-756.0,0.00031702,7]
[391792508,1760826643053,-151.0,0.00031727,30]
[391792509,1760826643062,-1234.0,0.00031727,7]
[391792510,1760826643071,-155.0,0.00031727,7]
[391792511,1760826643080,-155.0,0.00031727,7]
[391792512,1760826643089,-155.0,0.00031727,7]
[391792513,1760826643099,-155.0,0.00031727,7]
[391792514,1760826643108,-156.59988259,0.00031727,7]
[391792515,1760826643118,-27750.40069298,0.00031727,2]
[391792516,1760826643128,-2362.45,0.00031747,2]
[391792517,1760826643138,-500.0,0.00031747,2]
[391792518,1760826643147,-1199.28,0.00031753,2]
[391792519,1760826643156,-3266.3991,0.00031761,2]
[391792520,1760826643165,-168.0,0.00031786,2]
[391792521,1760826643175,-254.172248,0.00031802,30]
[391792522,1760826643184,-287.61899177,0.00031807,2]
[391792523,1760826643193,-151.20527437,0.00031808,30]
[391792524,1760826643202,-170.10593366,0.00031808,30]
[391792525,1760826643211,-2274.33903438,0.0003182,4]
[391792526,1760826643221,-756.0,0.00031825,2]
[391792527,1760826643230,-220.0,0.00031827,2]
[391792528,1760826643239,-151.0,0.00031832,30]
[391792529,1760826643249,-150.0,0.00031838,2]
[391792530,1760826643259,-150.0,0.00031838,2]
[391792531,1760826643268,-150.0,0.00031838,2]
[391792532,1760826643278,-209.191499,0.00031842,30]
[391792533,1760826643288,-151.0,0.00031842,30]
[391792534,1760826643297,-294.444759,0.00031842,30]
[391792535,1760826643307,-500.0,0.00031849,2]
[391792536,1760826643316,-602.72,0.00031849,2]
[391792537,1760826643326,-500.0,0.00031849,2]
[391792538,1760826643336,-500.0,0.00031849,2]
[391792539,1760826643345,-500.0,0.00031849,2]
[391792540,1760826643355,-1973.12,0.00031849,2]
[391792541,1760826643365,-918.25,0.0003185,2]
[391792543,1760826643375,-1161.52,0.0003185,2]
[391792544,1760826643384,-500.0,0.0003185,2]
[391792546,1760826643393,-500.0,0.0003185,2]
[391792548,1760826643403,-500.0,0.0003185,2]
[391792550,1760826643412,-500.0,0.0003185,2]
[391792552,1760826643421,-500.0,0.0003185,2]
[391792554,1760826643431,-500.0,0.0003185,2]
[391792555,1760826643440,-300.0,0.0003185,2]
[391792556,1760826643450,-500.0,0.0003185,2]
[391792557,1760826643459,-500.0,0.0003185,2]
[391792558,1760826643469,-151.0,0.00031851,30]
[391792559,1760826643478,-475.74147678,0.00031851,3]
[391792560,1760826643487,-500.0,0.0003186,2]
[391792561,1760826643498,-500.97826923,0.0003186,2]
[391792562,1760826643507,-500.0,0.0003186,2]
[391792563,1760826643517,-500.0,0.0003186,2]
[391792564,1760826643527,-500.0,0.0003186,2]
[391792565,1760826643537,-550.66,0.0003186,2]
[391792566,1760826643546,-151.0,0.00031861,30]
[391792567,1760826643555,-1000.0,0.00031863,30]
[391792568,1760826643565,-1000.0,0.00031863,30]
[391792569,1760826643574,-1000.0,0.00031863,30]
[391792570,1760826643583,-1000.0,0.00031863,30]
[391792571,1760826643593,-1000.0,0.00031863,30]
[391792572,1760826643602,-1000.0,0.00031863,30]
[391792573,1760826643611,-1000.0,0.00031863,30]
[391792574,1760826643620,-1000.0,0.00031863,30]
[391792575,1760826643630,-1000.0,0.00031863,30]
[391792576,1760826643643,-1000.0,0.00031863,30]
[391792577,1760826643652,-1000.0,0.00031863,30]
[391792578,1760826643661,-1000.0,0.00031863,30]
[391792579,1760826643671,-1000.0,0.00031863,30]
[391792580,1760826643680,-1000.0,0.00031863,30]
[391792581,1760826643690,-1000.0,0.00031863,30]
[391792582,1760826643699,-1000.0,0.00031863,30]
[391792583,1760826643708,-1000.0,0.00031863,30]
[391792584,1760826643721,-1000.0,0.00031863,30]
[391792585,1760826643731,-1000.0,0.00031863,30]
[391792586,1760826643740,-1000.0,0.00031863,30]
[391792587,1760826643749,-1000.0,0.00031863,30]
[391792588,1760826643759,-1000.0,0.00031863,30]
[391792589,1760826643768,-1000.0,0.00031863,30]
[391792590,1760826643777,-1000.0,0.00031863,30]
[391792591,1760826643787,-1000.0,0.00031863,30]
[391792592,1760826643799,-1000.0,0.00031863,30]
[391792593,1760826643809,-1000.0,0.00031863,30]
[391792594,1760826643818,-1000.0,0.00031863,30]
[391792595,1760826643828,-1000.0,0.00031863,30]
[391792596,1760826643839,-1000.0,0.00031863,30]
[391792597,1760826643849,-1000.0,0.00031863,30]
[391792598,1760826643862,-1000.0,0.00031863,30]
[391792599,1760826643872,-1000.0,0.00031863,30]
[391792600,1760826643882,-1000.0,0.00031863,30]
[391792601,1760826643891,-1000.0,0.00031863,30]
[391792602,1760826643900,-1000.0,0.00031863,30]
[391792603,1760826643910,-1000.0,0.00031863,30]
[391792604,1760826643919,-1000.0,0.00031863,30]
[391792605,1760826643929,-1000.0,0.00031863,30]
[391792606,1760826643939,-1000.0,0.00031863,30]
[391792607,1760826643949,-1000.0,0.00031863,30]
[391792608,1760826643959,-1000.0,0.00031863,30]
[391792609,1760826643969,-1000.0,0.00031863,30]
[391792610,1760826643979,-1000.0,0.00031863,30]
[391792611,1760826643990,-1000.0,0.00031863,30]
[391792612,1760826643999,-1000.0,0.00031863,30]
[391792613,1760826644008,-1000.0,0.00031863,30]
[391792614,1760826644017,-1000.0,0.00031863,30]
[391792615,1760826644027,-1000.0,0.00031863,30]
[391792616,1760826644036,-1000.0,0.00031863,30]
[391792617,1760826644045,-1000.0,0.00031863,30]
[391792618,1760826644054,-1000.0,0.00031863,30]
[391792619,1760826644063,-1000.0,0.00031863,30]
[391792620,1760826644073,-262.91971945,0.00031863,30]
[391792621,1760826644082,-1000.0,0.00031863,30]
[391792622,1760826644092,-1000.0,0.00031863,30]
[391792623,1760826644101,-1000.0,0.00031863,30]
[391792624,1760826644110,-1000.0,0.00031863,30]
[391792625,1760826644119,-1000.0,0.00031863,30]
[391792626,1760826644128,-1000.0,0.00031863,30]
[391792627,1760826644138,-1000.0,0.00031863,30]
[391792628,1760826644148,-1000.0,0.00031863,30]
[391792629,1760826644157,-1000.0,0.00031863,30]
[391792630,1760826644167,-1000.0,0.00031863,30]
[391792631,1760826644177,-1000.0,0.00031863,30]
[391792632,1760826644186,-1000.0,0.00031863,30]
[391792633,1760826644196,-1000.0,0.00031863,30]
[391792634,1760826644205,-1000.0,0.00031863,30]
[391792635,1760826644215,-1000.0,0.00031863,30]
[391792636,1760826644224,-1000.0,0.00031863,30]
[391792637,1760826644234,-1000.0,0.00031863,30]
[391792638,1760826644243,-1000.0,0.00031863,30]
[391792639,1760826644253,-1000.0,0.00031863,30]
[391792640,1760826644263,-207.63,0.00031863,30]
[391792641,1760826644273,-151.0,0.00031863,30]
[391792642,1760826644282,-151.0,0.00031871,2]
[391792643,1760826644291,-151.0,0.00031871,2]
[391792644,1760826644300,-475.74147678,0.00031871,7]
[391792645,1760826644313,-822.0,0.00031871,7]
[391792646,1760826644323,-822.0,0.00031871,7]
[391792647,1760826644332,-822.0,0.00031871,7]
[391792648,1760826644342,-822.0,0.00031871,7]
[391792649,1760826644352,-822.0,0.00031871,7]
[391792650,1760826644361,-822.0,0.00031871,7]
[391792651,1760826644372,-822.0,0.00031871,7]
[391792652,1760826644382,-822.0,0.00031871,7]
[391792653,1760826644392,-822.0,0.00031871,7]
[391792654,1760826644534,-822.0,0.00031871,7]
[391792655,1760826644544,-500.0,0.00031872,2]
[391792656,1760826644555,-500.0,0.00031873,5]
[391792657,1760826644565,-500.0,0.00031873,5]
[391792658,1760826644574,-500.0,0.00031873,5]
[391792659,1760826644583,-611.78592942,0.00031873,5]
[391792660,1760826644592,-500.0,0.00031873,5]
[391792661,1760826644601,-150.60324172,0.00031873,5]
[391792662,1760826644610,-151.0,0.00031873,30]
[391792663,1760826644619,-5000.0,0.00031888,2]
[391792664,1760826644628,-13596.0,0.0003189,2]
[391792665,1760826644638,-475.74147678,0.00031908,3]
[391792666,1760826644651,-2361.30716648,0.00031924,2]
[391792667,1760826644660,-170.10593366,0.00031945,30]
[391792668,1760826644670,-184.05225,0.00031953,2]
[391792669,1760826644679,-289.41,0.00031979,2]
[391792670,1760826644688,-1000.0,0.00032,2]
[391792671,1760826644697,-1008.2913,0.00032,2]
[391792672,1760826644706,-1000.0,0.00032,2]
[391792673,1760826644716,-1000.0,0.00032,2]
[391792674,1760826644726,-1000.0,0.00032,2]
[391792675,1760826644735,-1000.0,0.00032,2]
[391792676,1760826644746,-375.0,0.00032,30]
[391792677,1760826644757,-1000.0,0.00032,2]
[391792678,1760826644766,-1000.0,0.00032,2]
[391792679,1760826644777,-1000.0,0.00032,2]
[391792680,1760826644787,-756.0,0.00032021,2]
[391792681,1760826644798,-2362.45,0.00032021,2]
[391792682,1760826644809,-500.0,0.00032021,2]
[391792683,1760826644819,-500.0,0.00032033,2]
[391792684,1760826644829,-312.57711192,0.00032033,2]
[391792685,1760826644839,-1000.0,0.00032043,2]
[391792686,1760826644850,-170.10593366,0.00032055,30]
[391792687,1760826644859,-160.61688529,0.00032087,3]
[391792688,1760826644870,-1579.6199,0.00032092,10]
[391792689,1760826644880,-636.0425,0.00032092,3]
[391792690,1760826644890,-262.6,0.00032123,2]
[391792691,1760826644900,-602.72,0.00032123,2]
[391792692,1760826644910,-500.0,0.00032123,2]
[391792693,1760826644921,-500.0,0.00032123,2]
[391792694,1760826644930,-500.0,0.00032123,2]
[391792695,1760826644940,-1973.12,0.00032123,2]
[391792696,1760826644949,-150.4,0.00032124,2]
[391792697,1760826644958,-918.25,0.00032124,2]
[391792698,1760826644968,-1161.52,0.00032124,2]
[391792699,1760826644978,-636.1,0.00032124,2]
[391792700,1760826644989,-504.98,0.00032124,2]
[391792701,1760826644999,-500.0,0.00032124,2]
[391792702,1760826645008,-500.0,0.00032124,2]
[391792703,1760826645018,-500.0,0.00032124,2]
[391792704,1760826645027,-500.0,0.00032124,2]
[391792705,1760826645037,-300.0,0.00032124,2]
[391792706,1760826645046,-500.0,0.00032124,2]
[391792707,1760826645056,-500.0,0.00032124,2]
[391792708,1760826645067,-500.0,0.00032134,2]
[391792709,1760826645076,-500.0,0.00032134,2]
[391792710,1760826645086,-550.66,0.00032134,2]
[391792711,1760826645097,-403.40103498,0.00032142,5]
[391792712,1760826645107,-514.88171908,0.00032148,2]
[391792713,1760826645116,-756.0,0.00032151,2]
[391792714,1760826645125,-1000.0,0.00032152,2]
[391792715,1760826645135,-334.5472959,0.00032155,2]
[391792716,1760826645146,-2361.30716648,0.00032162,2]
[391792717,1760826645157,-181.92422068,0.00032166,2]
[391792718,1760826645166,-514.6513938,0.00032166,2]
[391792719,1760826645175,-500.0,0.00032167,2]
[391792720,1760826645184,-498.471,0.00032178,2]
[391792721,1760826645193,-605.0,0.00032178,2]
[391792722,1760826645202,-1309.0,0.00032178,2]
[391792723,1760826645211,-571.0,0.00032178,2]
[391792724,1760826645221,-816.0,0.00032178,2]
[391792725,1760826645230,-1181.0,0.00032178,2]
[391792726,1760826645239,-906.218,0.00032178,2]
[391792727,1760826645249,-2546.0,0.00032178,2]
[391792728,1760826645263,-1267.0,0.00032178,2]
[391792729,1760826645272,-2050.0,0.00032178,2]
[391792730,1760826645281,-2590.0,0.00032178,2]
[391792731,1760826645291,-6436.0,0.00032178,2]
[391792732,1760826645300,-1000.0,0.0003219,10]
[391792733,1760826645310,-151.24,0.0003219,2]
[391792734,1760826645320,-170.10593366,0.00032192,30]
[391792735,1760826645331,-1000.0,0.00032193,2]
[391792736,1760826645341,-289.41,0.00032197,2]
[391792737,1760826645350,-1500.0,0.000322,10]
[391792738,1760826645359,-514.88171902,0.00032201,2]
[391792739,1760826645368,-195.71279344,0.00032234,2]
[391792740,1760826645377,-514.88171902,0.00032254,2]
[391792741,1760826645386,-756.0,0.00032267,7]
[391792742,1760826645396,-756.0,0.00032294,2]
[391792743,1760826645405,-2362.45,0.00032295,2]
[391792744,1760826645415,-500.0,0.00032295,2]
[391792745,1760826645424,-1229.70906321,0.00032297,2]
[391792746,1760826645433,-369.39994114,0.000323,2]
[391792747,1760826645443,-6897.37120024,0.000323,2]
[391792748,1760826645452,-507.95264927,0.000323,6]
[391792749,1760826645462,-1000.0,0.000323,30]
[391792750,1760826645471,-1000.0,0.000323,15]
[391792751,1760826645483,-1000.0,0.000323,20]
[391792752,1760826645492,-170.10593366,0.00032301,30]
[391792753,1760826645503,-514.88171902,0.00032307,2]
[391792754,1760826645512,-1000.0,0.00032324,2]
[391792755,1760826645521,-1425.0,0.00032333,2]
[391792756,1760826645531,-514.88171902,0.00032359,2]
[391792757,1760826645540,-1171.50047707,0.0003237,2]
[391792758,1760826645549,-1229.7090632,0.00032381,2]
[391792759,1760826645558,-370.8671362,0.00032383,2]
[391792760,1760826645567,-1223.68732028,0.0003239,2]
[391792761,1760826645576,-999.0,0.00032396,120]
[391792762,1760826645586,-110887.48354541,0.00032397,30]
[391792763,1760826645595,-602.72,0.00032397,2]
[391792764,1760826645605,-500.0,0.00032397,2]
[391792765,1760826645615,-533.28361299,0.00032397,2]
[391792766,1760826645624,-500.0,0.00032397,2]
[391792767,1760826645633,-1973.12,0.00032397,2]
[391792768,1760826645644,-111111.0,0.00032398,30]
[391792769,1760826645655,-918.25,0.00032398,2]
[391792770,1760826645665,-1161.52,0.00032398,2]
[391792771,1760826645674,-500.0,0.00032398,2]
[391792772,1760826645683,-500.0,0.00032398,2]
[391792773,1760826645694,-500.0,0.00032398,2]
[391792774,1760826645703,-500.0,0.00032398,2]
[391792775,1760826645714,-300.0,0.00032398,2]
[391792776,1760826645725,-500.0,0.00032398,2]
[391792777,1760826645735,-500.0,0.00032398,2]
[391792778,1760826645745,-1000.0,0.00032399,14]
[391792779,1760826645755,-1000.0,0.00032399,2]
[391792780,1760826645766,-150.0,0.00032399,2]
[391792781,1760826645775,-150.0,0.00032399,20]
[391792782,1760826645786,-182926.22620447,0.000324,4]
[391792783,1760826645888,-110342.17366617,0.000324,4]
[391792784,1760826645900,-2250.0,0.000324,4]
[391792785,1760826645926,-762.77896103,0.00032178,2]
[391792786,1760826646053,-334.468036,0.00025554,2]
[391792787,1760826646063,-174.53,0.00031616,2]
[391792788,1760826646072,-1364.16201503,0.00032178,2]
[391792789,1760826646343,-1281.05902394,0.00032178,2]
[391792790,1760826646354,-3203.14988956,0.000323,2]
[391792791,1760826646364,-739.0889273,0.000323,2]
[391792792,1760826646373,-15976.07419669,0.000324,4]
[391792802,1760826740335,-247.61503877,0.00014899,2]
[391792803,1760826743640,-545.78975541,0.00014899,2]
[391792864,1760827657607,-585.42,0.0001535,2]
[391792870,1760827832146,-585.42,0.00016158,2]
[391792871,1760827832156,-214.53412251,0.00016865,2]
[391792872,1760827832166,-203.72923749,0.00016965,2]
[391792874,1760827832204,-381.69076251,0.00016965,2]
[391792875,1760827832213,-101.97972271,0.00017773,2]
[391792876,1760827832224,-483.44027729,0.00017773,2]
[391792877,1760827832234,-302.94245312,0.00018481,2]
[391792878,1760827832244,-585.42,0.00018581,2]
[391792879,1760827832254,-585.42,0.00019389,2]
[391792880,1760827832265,-119.97726959,0.00020197,2]
[391792881,1760827832278,-465.44273041,0.00020197,2]
[391792882,1760827832289,-585.42,0.00021005,2]
[391792883,1760827832299,-585.42,0.00021813,2]
[391792884,1760827832308,-585.42,0.00022621,2]
[391792885,1760827832318,-585.42,0.00023429,2]
[391792886,1760827832327,-585.42,0.00024236,2]
[391792887,1760827832337,-302.9424531,0.00024904,2]
[391792888,1760827832347,-500.0,0.00024932,2]
[391792889,1760827832358,-1200.0,0.00025043,2]
[391792890,1760827832368,-585.42,0.00025044,2]
[391792891,1760827832378,-585.42,0.00025852,2]
[391792892,1760827832388,-585.42,0.0002666,2]
[391792893,1760827832398,-300.0,0.00027466,2]
[391792895,1760827832408,-300.0,0.00027466,2]
[391792897,1760827832418,-1200.0,0.00027467,2]
[391792899,1760827832427,-585.42,0.00027468,2]
[391792901,1760827832437,-165.53,0.00028196,2]
[391792902,1760827832446,-585.42,0.00028276,2]
[391792903,1760827832456,-1500.0,0.000288,2]
[391792905,1760827832466,-585.42,0.00029084,2]
[391792907,1760827832475,-166.66,0.00029337,30]
[391792909,1760827832484,-666.0,0.00029713,3]
[391792910,1760827832494,-585.42,0.00029892,2]
[391792911,1760827832503,-166.66,0.00029954,30]
[391792912,1760827832514,-200.0,0.00030118,2]
[391792914,1760827832524,-151.0,0.00030118,2]
[391792916,1760827832534,-151.0,0.00030118,2]
[391792918,1760827832544,-151.0,0.00030118,2]
[391792920,1760827832553,-151.0,0.00030118,2]
[391792922,1760827832563,-151.0,0.00030118,2]
[391792924,1760827832572,-151.0,0.00030118,2]
[391792926,1760827832581,-151.0,0.00030118,2]
[391792928,1760827832591,-151.0,0.00030118,2]
[391792930,1760827832604,-151.0,0.00030118,2]
[391792932,1760827832613,-151.0,0.00030118,2]
[391792934,1760827832622,-151.0,0.00030118,2]
[391792936,1760827832631,-151.0,0.00030118,2]
[391792938,1760827832642,-151.0,0.00030118,2]
[391792940,1760827832651,-151.0,0.00030118,2]
[391792942,1760827832660,-151.0,0.00030118,2]
[391792944,1760827832669,-151.0,0.00030118,2]
[391792948,1760827832679,-151.0,0.00030118,2]
[391792951,1760827832688,-151.0,0.00030118,2]
[391792953,1760827832697,-151.0,0.00030118,2]
[391792955,1760827832708,-151.0,0.00030118,2]
[391792957,1760827832718,-264.4478428,0.00030118,2]
[391792959,1760827832728,-200.0,0.00030118,2]
[391792961,1760827832737,-200.0,0.00030118,2]
[391792963,1760827832746,-500.0,0.00030136,2]
[391792965,1760827832756,-500.0,0.00030136,2]
[391792967,1760827832765,-504.77,0.00030136,2]
[391792969,1760827832775,-600.0,0.00030302,2]
[391792971,1760827832784,-151.0,0.00030302,2]
[391792973,1760827832793,-1000.0,0.00030302,2]
[391792975,1760827832802,-277.35679052,0.00030302,2]
[391792977,1760827832811,-1000.0,0.00030302,2]
[391792979,1760827832820,-1000.0,0.00030302,2]
[391792981,1760827832829,-721.12765535,0.00030302,2]
[391792983,1760827832838,-434.5389142,0.00030302,2]
[391792984,1760827832847,-250.0,0.00030302,2]
[391792986,1760827832857,-250.0,0.00030302,2]
[391792989,1760827832866,-250.0,0.00030302,2]
[391792990,1760827832875,-250.0,0.00030302,2]
[391792992,1760827832885,-1000.0,0.00030302,2]
[391792994,1760827832893,-250.0,0.00030302,2]
[391792996,1760827832902,-250.0,0.00030302,2]
[391792998,1760827832911,-500.0,0.0003041,2]
[391793000,1760827832920,-500.0,0.0003041,2]
[391793002,1760827832930,-504.77,0.0003041,2]
[391793004,1760827832939,-472.07859674,0.000305,5]
[391793005,1760827832948,-165.64596399,0.00030563,5]
[391793007,1760827832958,-166.66,0.00030572,30]
[391793009,1760827832967,-202.83835442,0.00030666,2]
[391793011,1760827832977,-200.0,0.00030666,2]
[391793013,1760827832985,-504.77,0.00030684,2]
[391793015,1760827832994,-519.2,0.00030686,2]
[391793017,1760827833003,-585.42,0.000307,2]
[391793019,1760827833013,-500.0,0.0003085,2]
[391793021,1760827833022,-390.37031076,0.0003085,2]
[391793023,1760827833032,-500.0,0.0003085,2]
[391793025,1760827833041,-500.0,0.0003085,2]
[391793027,1760827833050,-500.0,0.0003085,2]
[391793029,1760827833059,-5000.0,0.00030851,2]
[391793031,1760827833069,-1586.21,0.0003095,2]
[391793033,1760827833079,-1326.772,0.0003095,27]
[391793035,1760827833088,-504.77,0.00030958,2]
[391793037,1760827833097,-2643.77,0.00031147,2]
[391793039,1760827833107,-992.92,0.00031159,120]
[391793041,1760827833116,-415.44353569,0.00031168,7]
[391793043,1760827833126,-166.66,0.0003119,30]
[391793045,1760827833135,-283.29441731,0.00031214,2]
[391793046,1760827833145,-504.77,0.00031232,2]
[391793048,1760827833154,-302.9424531,0.00031326,2]
[391793050,1760827833163,-7732.92439973,0.00031426,2]
[391793053,1760827833175,-1617.34995375,0.00031426,2]
[391793055,1760827833187,-649.71564652,0.00031426,2]
[391793057,1760827833196,-3767.12,0.00031426,2]
[391793059,1760827833205,-4684.43,0.00031426,2]
[391793061,1760827833215,-9399.61,0.00031426,2]
[391793063,1760827833225,-499.99,0.00031426,2]
[391793065,1760827833234,-308.59,0.00031426,2]
[391793067,1760827833242,-732.66,0.00031426,20]
[391793069,1760827833251,-150.99,0.00031426,2]
[391793071,1760827833260,-908.93,0.00031426,2]
[391793073,1760827833269,-419.45,0.00031426,2]
[391793075,1760827833278,-5315.57,0.00031426,2]
[391793077,1760827833288,-150.99,0.00031426,2]
[391793079,1760827833297,-504.77,0.00031506,2]
[391793081,1760827833306,-165.53,0.0003162,2]
[391793083,1760827833315,-287.61899177,0.00031671,2]
[391793084,1760827833324,-504.77,0.0003178,2]
[391793086,1760827833334,-166.66,0.00031807,30]
[391793089,1760827833346,-150.0,0.00031838,2]
[391793091,1760827833356,-178.0,0.00032,14]
[391793092,1760827833366,-504.77,0.00032054,2]
[391793094,1760827833375,-749.0,0.00032161,2]
[391793097,1760827833385,-403.962,0.00032161,2]
[391793098,1760827833395,-2048.0,0.00032161,2]
[391793101,1760827833405,-539.307,0.00032161,2]
[391793102,1760827833415,-1525.87127348,0.00032161,2]
[391793105,1760827833427,-530.45272652,0.00032161,2]
[391793107,1760827833437,-556.0,0.00032161,2]
[391793109,1760827833446,-472.9659718,0.00032292,4]
[391793111,1760827833458,-1649.75046026,0.00032292,4]
[391793113,1760827833468,-171.62723969,0.000323,2]
[391793115,1760827833477,-1498.03366109,0.000323,2]
[391793117,1760827833487,-163.31881503,0.000323,15]
[391793119,1760827833497,-160.61688528,0.000323,4]
[391793121,1760827833506,-3167.11024126,0.000323,2]
[391793123,1760827833517,-1105.78227794,0.000323,2]
[391793126,1760827833528,-727.1074808,0.000323,2]
[391793127,1760827833539,-207.93320352,0.000323,2]
[391793129,1760827833548,-976.79214422,0.00032318,2]
[391793132,1760827833559,-521.24151678,0.00032318,2]
[391793133,1760827833568,-1195.77883981,0.00032321,2]
[391793135,1760827833577,-504.77,0.00032328,2]
[391793137,1760827833586,-171.62723967,0.00032333,2]
[391793139,1760827833597,-1106.58242374,0.00032337,2]
[391793141,1760827833610,-391.45123726,0.00032337,2]
[391793143,1760827833619,-1195.77883981,0.00032342,2]
[391793145,1760827833628,-1498.033661,0.00032355,2]
[391793147,1760827833637,-1195.77883981,0.00032362,2]
[391793149,1760827833646,-1218.95742212,0.00032366,2]
[391793151,1760827833657,-480.54143248,0.00032366,2]
[391793153,1760827833667,-4265.8646237,0.00032366,2]
[391793155,1760827833676,-171.62723967,0.00032366,2]
[391793157,1760827833685,-501.15133749,0.00032373,5]
[391793159,1760827833695,-500.0,0.00032373,5]
[391793161,1760827833704,-272.52876704,0.00032373,5]
[391793163,1760827833713,-1498.033661,0.00032373,2]
[391793165,1760827833722,-553.71,0.0003238,2]
[391793167,1760827833732,-553.71,0.0003238,2]
[391793169,1760827833741,-553.71,0.0003238,2]
[391793171,1760827833754,-553.71,0.0003238,2]
[391793173,1760827833763,-553.71,0.0003238,2]
[391793175,1760827833773,-1195.77883981,0.00032383,2]
[391793177,1760827833782,-803.47,0.00032389,2]
[391793179,1760827833791,-1016.33,0.00032389,2]
[391793181,1760827833800,-500.0,0.00032389,2]
[391793183,1760827833810,-500.0,0.00032389,2]
[391793185,1760827833820,-426.76,0.00032389,2]
[391793187,1760827833830,-500.0,0.00032389,2]
[391793189,1760827833839,-297.02580277,0.00032389,2]
[391793191,1760827833849,-225.27806386,0.00032389,2]
[391793193,1760827833858,-500.0,0.00032389,2]
[391793195,1760827833867,-500.0,0.00032389,2]
[391793197,1760827833876,-198.46496874,0.00032389,2]
[391793199,1760827833886,-300.0,0.00032389,2]
[391793201,1760827833895,-527.38,0.00032389,2]
[391793203,1760827833904,-500.0,0.00032389,2]
[391793205,1760827833913,-500.0,0.00032389,2]
[391793207,1760827833923,-1870.27,0.00032389,2]
[391793209,1760827833932,-1726.48,0.00032389,2]
[391793211,1760827833941,-500.0,0.00032389,2]
[391793213,1760827833951,-500.0,0.00032389,2]
[391793216,1760827833961,-500.0,0.00032389,2]
[391793217,1760827833971,-487.04410614,0.0003239,3]
[391793220,1760827833982,-529.05,0.0003239,3]
[391793327,1760827838298,-2590.0,0.00032161,2]
[391793328,1760827838308,-716.25658004,0.0003239,3]
[391793329,1760827838320,-10155.11346341,0.0003239,3]
[391793330,1760827838333,-11985.974,0.0003239,3]
[391793331,1760827838345,-5609.64989238,0.0003239,3]
[391793332,1760827838357,-1343.71200004,0.0003239,3]
[391793333,1760827838368,-12809.42294059,0.0003239,3]
[391793334,1760827838381,-2197.63810758,0.0003239,3]
[391793335,1760827838392,-130903.45234322,0.0003239,3]
[391793336,1760827838403,-1104.68,0.0003239,3]
[391793445,1760827840291,-670.50314189,0.0003239,3]
[391793446,1760827840350,-9792.15077368,0.0003239,3]
[391793447,1760827840363,-4428.11797574,0.0003239,3]
[391793448,1760827840375,-536.95,0.0003239,3]
[391793449,1760827840491,-2510.0501248,0.0003239,3]
[391793454,1760828203797,295.39,0.00013699,2]
[391793460,1760829032305,-150.0,0.00017165,2]
[391793461,1760829032317,-151.0,0.00018853,2]
[391793462,1760829032326,-295.39,0.00020187,2]
[391793463,1760829032336,-179.41210662,0.00024885,2]
[391793464,1760829032345,-500.0,0.00024932,2]
[391793465,1760829032354,-300.0,0.00024984,2]
[391793466,1760829032364,-2000.0,0.00024984,2]
[391793467,1760829032374,-730.0,0.00024984,2]
[391793468,1760829032383,-151.0,0.00024985,2]
[391793469,1760829032392,-151.0,0.00024985,2]
[391793470,1760829032403,-151.0,0.00024985,2]
[391793471,1760829032413,-151.0,0.00024985,2]
[391793472,1760829032422,-151.0,0.00024985,2]